fUSD/lending_fUSD_20241030
["ID","MTS","AMOUNT","RATE_DAILY","PERIOD"]
[341031744,1730287861276,-446.47624888,0.00034667,5]
[341031745,1730287861286,-500.0,0.00034667,5]
[341031746,1730287861298,-500.0,0.00034667,5]
[341031747,1730287861311,-500.0,0.00034667,5]
[341031748,1730287861321,-500.0,0.00034667,5]
[341031749,1730287861331,-500.0,0.00034667,5]
[341031750,1730287861341,-500.0,0.00034667,5]
[341031751,1730287861350,-500.0,0.00034667,5]
[341031752,1730287861359,-500.0,0.00034667,5]
[341031753,1730287861369,-500.0,0.00034667,5]
[341031754,1730287861378,-500.0,0.00034667,5]
[341031755,1730287861388,-500.0,0.00034667,5]
[341031756,1730287861399,-500.0,0.00034667,5]
[341031757,1730287861409,-500.0,0.00034667,5]
[341031758,1730287861419,-500.0,0.00034667,5]
[341031759,1730287861429,-500.0,0.00034667,5]
[341031760,1730287861438,-500.0,0.00034667,5]
[341031761,1730287861448,-500.0,0.00034667,5]
[341031762,1730287861458,-500.0,0.00034667,5]
[341031763,1730287861467,-500.0,0.00034667,5]
[341031764,1730287861476,-500.0,0.00034667,5]
[341031765,1730287861485,-500.0,0.00034667,5]
[341031766,1730287861495,-500.0,0.00034667,5]
[341031767,1730287861504,-500.0,0.00034667,5]
[341031768,1730287861513,-500.0,0.00034667,5]
[341031769,1730287861523,-622.60616125,0.00034667,5]
[341031770,1730287861532,-414.63157525,0.00034667,5]
[341031771,1730287861542,-150.0,0.00034667,5]
[341031772,1730287861551,-500.0,0.00034667,5]
[341031773,1730287861560,-500.0,0.00034667,5]
[341031774,1730287861570,-500.0,0.00034667,5]
[341031775,1730287861579,-500.0,0.00034667,5]
[341031776,1730287861588,-540.94113661,0.00034667,5]
[341031777,1730287861597,-500.0,0.00034667,5]
[341031778,1730287861607,-500.0,0.00034667,5]
[341031779,1730287861616,-500.0,0.00034667,5]
[341031780,1730287861625,-154.446675,0.00034667,7]
[341031781,1730287861635,-500.0,0.00034667,5]
[341031782,1730287861644,-500.0,0.00034667,5]
[341031783,1730287861654,-500.0,0.00034667,5]
[341031784,1730287861663,-500.0,0.00034667,5]
[341031785,1730287861672,-500.0,0.00034667,5]
[341031786,1730287861682,-580.91189675,0.00034667,5]
[341031787,1730287861691,-500.0,0.00034667,5]
[341031788,1730287861702,-500.0,0.00034667,5]
[341031789,1730287861711,-500.0,0.00034667,5]
[341031790,1730287861720,-500.0,0.00034667,5]
[341031791,1730287861730,-500.0,0.00034667,5]
[341031792,1730287861740,-500.0,0.00034667,5]
[341031793,1730287861749,-500.0,0.00034667,5]
[341031794,1730287861758,-608.47238214,0.00034667,5]
[341031795,1730287861768,-270.3,0.00034667,5]
[341031796,1730287861885,-1507.49,0.00034667,5]
[341031797,1730287861895,-500.0,0.00034667,5]
[341031798,1730287861906,-500.0,0.00034667,5]
[341031799,1730287861916,-500.0,0.00034667,5]
[341031800,1730287861925,-500.0,0.00034667,5]
[341031801,1730287861935,-285.99875365,0.00034667,5]
[341031802,1730287861944,-186.59908676,0.00034667,5]
[341031803,1730287861954,-676.32,0.00034667,5]
[341031804,1730287861964,-500.0,0.00034667,5]
[341031805,1730287861974,-1022.39,0.00034667,5]
[341031806,1730287861983,-1138.41,0.00034667,5]
[341031807,1730287861993,-500.0,0.00034667,5]
[341031808,1730287862002,-1014.67,0.00034667,5]
[341031809,1730287862012,-500.0,0.00034667,5]
[341031810,1730287862021,-500.0,0.00034667,5]
[341031811,1730287862030,-152.269127,0.00034667,7]
[341031812,1730287862040,-152.269133,0.00034667,7]
[341031813,1730287862049,-196.16685313,0.00034667,2]
[341031814,1730287862059,-5821.66214141,0.00034667,2]
[341031815,1730287862069,-202.5757987,0.00034673,5]
[341031816,1730287862078,-500.0,0.00034673,5]
[341031817,1730287862088,-168.95,0.00034689,2]
[341031818,1730287862098,-500.0,0.00034692,5]
[341031819,1730287862107,-500.0,0.00034693,120]
[341031820,1730287862117,-5000.0,0.00034693,7]
[341031821,1730287862127,-150.01,0.00034695,2]
[341031822,1730287862137,-1928.29819003,0.00034695,2]
[341031823,1730287862147,-150.935,0.00034696,39]
[341031824,1730287862156,-309.70273747,0.00034706,2]
[341031825,1730287862166,-3257.1962614,0.00034713,2]
[341031826,1730287862176,-200.0,0.00034737,2]
[341031827,1730287862186,-309.70273747,0.00034775,2]
[341031828,1730287862201,-867.11,0.00034794,5]
[341031829,1730287862217,-978.71,0.00034794,5]
[341031830,1730287862226,-500.0,0.00034794,5]
[341031831,1730287862236,-1297.33,0.00034794,5]
[341031832,1730287862246,-500.0,0.00034794,5]
[341031833,1730287862257,-927.96,0.00034794,5]
[341031834,1730287862267,-500.0,0.00034794,5]
[341031835,1730287862276,-501.54,0.00034794,5]
[341031836,1730287862286,-309.70273747,0.00034845,2]
[341031837,1730287862296,-574.4617496,0.0003489,2]
[341031838,1730287862305,-150.0,0.00034898,2]
[341031839,1730287862314,-474.0,0.00034898,7]
[341031840,1730287862323,-2972.01176933,0.000349,2]
[341031841,1730287862333,-2972.01176932,0.00034907,2]
[341031842,1730287862342,-151.94768915,0.00034914,15]
[341031843,1730287862352,-309.70273747,0.00034914,2]
[341031844,1730287862361,-2972.01176932,0.00034914,2]
[341031845,1730287862371,-784.81,0.00034938,5]
[341031846,1730287862381,-1834.74,0.00034938,5]
[341031847,1730287862391,-1511.74,0.00034938,5]
[341031848,1730287862400,-507.73,0.00034938,5]
[341031849,1730287862410,-592.23785142,0.00034938,5]
[341031850,1730287862420,-573.27,0.00034938,5]
[341031851,1730287862430,-500.0,0.00034938,5]
[341031852,1730287862440,-2246.81,0.00034938,5]
[341031853,1730287862452,-664.0,0.00034938,5]
[341031854,1730287862462,-500.0,0.00034938,5]
[341031855,1730287862471,-500.0,0.00034938,5]
[341031856,1730287862481,-500.0,0.00034938,5]
[341031857,1730287862490,-500.0,0.00034938,5]
[341031858,1730287862500,-500.0,0.00034938,5]
[341031859,1730287862510,-522.68,0.00034938,5]
[341031860,1730287862519,-754.99,0.00034938,5]
[341031861,1730287862528,-500.0,0.00034938,5]
[341031862,1730287862537,-464.70542292,0.00034938,5]
[341031863,1730287862547,-535.9,0.00034938,5]
[341031864,1730287862557,-1710.39,0.00034938,5]
[341031865,1730287862567,-1330.52,0.00034938,5]
[341031866,1730287862576,-500.0,0.00034938,5]
[341031867,1730287862586,-1233.13,0.00034938,5]
[341031868,1730287862595,-500.0,0.00034938,5]
[341031869,1730287862604,-1553.39,0.00034938,5]
[341031870,1730287862615,-500.0,0.00034938,5]
[341031871,1730287862624,-1848.28,0.00034938,5]
[341031872,1730287862634,-611.79,0.00034938,5]
[341031873,1730287862644,-3719.69,0.00034938,5]
[341031874,1730287862654,-677.95,0.00034938,5]
[341031875,1730287862665,-500.0,0.00034938,5]
[341031876,1730287862674,-500.0,0.00034938,5]
[341031877,1730287862684,-683.81,0.00034938,5]
[341031878,1730287862694,-612.99,0.00034938,5]
[341031879,1730287862706,-650.05,0.00034938,5]
[341031880,1730287862715,-500.0,0.00034938,5]
[341031881,1730287862725,-1371.89,0.00034938,5]
[341031882,1730287862735,-500.0,0.00034938,5]
[341031883,1730287862745,-810.88,0.00034938,5]
[341031884,1730287862754,-500.0,0.00034938,5]
[341031885,1730287862764,-700.2,0.00034938,5]
[341031886,1730287862773,-4336.64,0.00034938,5]
[341031887,1730287862783,-6659.79,0.00034938,5]
[341031888,1730287862793,-4383.56,0.00034938,5]
[341031889,1730287862802,-872.82,0.00034938,5]
[341031890,1730287862812,-585.05927149,0.00034938,5]
[341031891,1730287862823,-504.66,0.00034938,5]
[341031892,1730287862833,-1179.4,0.00034938,5]
[341031893,1730287862843,-8084.33,0.00034938,5]
[341031894,1730287862852,-381.41905982,0.00034938,5]
[341031895,1730287862862,-1163.92,0.00034938,5]
[341031896,1730287862871,-500.0,0.00034939,5]
[341031897,1730287862881,-546.16653209,0.00034939,5]
[341031898,1730287862890,-500.0,0.00034939,5]
[341031899,1730287862900,-500.0,0.00034939,5]
[341031900,1730287862909,-500.0,0.00034939,5]
[341031901,1730287862919,-500.0,0.00034939,5]
[341031902,1730287862929,-757.76,0.00034939,5]
[341031903,1730287862938,-500.0,0.00034939,5]
[341031904,1730287862947,-500.0,0.00034939,5]
[341031905,1730287862957,-500.0,0.00034939,5]
[341031906,1730287862966,-564.43,0.00034939,5]
[341031907,1730287862976,-500.0,0.00034939,5]
[341031908,1730287862986,-500.0,0.00034939,5]
[341031909,1730287862995,-500.0,0.00034939,5]
[341031910,1730287863005,-500.0,0.00034939,5]
[341031911,1730287863015,-500.0,0.00034939,5]
[341031912,1730287863024,-760.34,0.00034939,5]
[341031913,1730287863034,-500.0,0.00034939,5]
[341031914,1730287863044,-557.8,0.00034939,5]
[341031915,1730287863054,-500.0,0.00034939,5]
[341031916,1730287863064,-500.0,0.00034939,5]
[341031917,1730287863073,-500.0,0.00034939,5]
[341031918,1730287863082,-500.0,0.00034939,5]
[341031919,1730287863092,-513.58,0.00034939,5]
[341031920,1730287863101,-676.79,0.00034939,5]
[341031921,1730287863111,-500.0,0.00034939,5]
[341031922,1730287863121,-500.0,0.00034939,5]
[341031923,1730287863132,-500.0,0.00034939,5]
[341031924,1730287863142,-500.0,0.00034939,5]
[341031925,1730287863152,-500.0,0.00034939,5]
[341031926,1730287863162,-908.71,0.00034939,5]
[341031927,1730287863171,-500.0,0.00034939,5]
[341031928,1730287863180,-500.0,0.00034939,5]
[341031929,1730287863189,-373.71151851,0.00034939,5]
[341031930,1730287863200,-1060.03,0.00034939,5]
[341031931,1730287863209,-500.0,0.00034939,5]
[341031932,1730287863219,-1729.06,0.00034939,5]
[341031933,1730287863229,-500.0,0.00034939,5]
[341031934,1730287863239,-768.66,0.00034939,5]
[341031935,1730287863249,-500.0,0.00034939,5]
[341031936,1730287863265,-915.72,0.00034939,5]
[341031937,1730287863275,-150.0,0.00034939,5]
[341031938,1730287863285,-962.49,0.00034939,5]
[341031939,1730287863295,-500.0,0.00034939,5]
[341031940,1730287863304,-553.31,0.00034939,5]
[341031941,1730287863314,-500.0,0.00034939,5]
[341031942,1730287863324,-500.0,0.00034939,5]
[341031943,1730287863334,-500.0,0.00034939,5]
[341031944,1730287863346,-1177.05,0.00034939,5]
[341031945,1730287863357,-500.0,0.00034939,5]
[341031946,1730287863366,-500.0,0.00034939,5]
[341031947,1730287863375,-500.0,0.00034939,5]
[341031948,1730287863386,-347.91315715,0.00034939,5]
[341031949,1730287863395,-500.0,0.00034939,5]
[341031950,1730287863404,-500.0,0.00034939,5]
[341031951,1730287863414,-566.53,0.00034939,5]
[341031952,1730287863424,-678.67,0.00034939,5]
[341031953,1730287863434,-500.0,0.00034939,5]
[341031954,1730287863443,-617.61,0.00034939,5]
[341031955,1730287863453,-500.0,0.00034939,5]
[341031956,1730287863463,-1539.9,0.00034939,5]
[341031957,1730287863473,-500.0,0.00034939,5]
[341031958,1730287863485,-561.44,0.00034939,5]
[341031959,1730287863496,-500.0,0.00034939,5]
[341031960,1730287863506,-402.80443942,0.00034939,5]
[341031961,1730287863516,-500.0,0.00034939,5]
[341031962,1730287863526,-549.24,0.00034939,5]
[341031963,1730287863536,-500.0,0.00034939,5]
[341031964,1730287863545,-500.0,0.00034939,5]
[341031965,1730287863555,-818.61,0.00034939,5]
[341031966,1730287863565,-500.0,0.00034939,5]
[341031967,1730287863575,-374.70468674,0.00034939,5]
[341031968,1730287863586,-625.46000195,0.00034939,5]
[341031969,1730287863596,-548.26,0.00034939,5]
[341031970,1730287863606,-535.13902529,0.00034939,5]
[341031971,1730287863616,-632.51,0.00034939,5]
[341031972,1730287863626,-2000.0,0.00034939,120]
[341031973,1730287863636,-500.0,0.00034939,5]
[341031974,1730287863646,-1542.88,0.00034939,5]
[341031975,1730287863655,-1820.15,0.00034939,5]
[341031976,1730287863665,-560.75,0.00034939,5]
[341031977,1730287863771,-1983.08,0.00034939,5]
[341031978,1730287863794,-1006.59,0.00034939,5]
[341031979,1730287863804,-7488.91,0.00034939,120]
[341031980,1730287863813,-998.78,0.00034939,5]
[341031981,1730287863823,-500.0,0.00034939,5]
[341031982,1730287863832,-1054.61,0.00034939,5]
[341031983,1730287863843,-514.12,0.00034939,5]
[341031984,1730287863852,-500.0,0.00034939,5]
[341031985,1730287863861,-549.22335086,0.00034939,5]
[341031986,1730287863871,-500.0,0.00034939,5]
[341031987,1730287863880,-530.93,0.00034939,5]
[341031988,1730287863890,-500.0,0.00034939,5]
[341031989,1730287863899,-500.0,0.00034939,5]
[341031990,1730287863909,-500.0,0.00034939,5]
[341031991,1730287863919,-795.38,0.00034939,5]
[341031992,1730287863928,-500.0,0.00034939,5]
[341031993,1730287863938,-562.06999567,0.00034939,5]
[341031994,1730287863948,-500.0,0.00034939,5]
[341031995,1730287863958,-500.0,0.00034939,5]
[341031996,1730287863968,-174.70196401,0.00034939,5]
[341031997,1730287863978,-500.0,0.00034939,5]
[341031998,1730287863987,-500.0,0.00034939,5]
[341031999,1730287863996,-911.41,0.00034939,5]
[341032000,1730287864006,-2262.29,0.00034939,5]
[341032001,1730287864016,-931.91,0.00034939,5]
[341032002,1730287864025,-761.36,0.00034939,5]
[341032003,1730287864034,-500.0,0.00034939,5]
[341032004,1730287864045,-500.0,0.00034939,5]
[341032005,1730287864054,-1080.3,0.00034939,5]
[341032006,1730287864064,-1295.61,0.00034939,5]
[341032007,1730287864074,-500.0,0.00034939,5]
[341032008,1730287864083,-500.0,0.00034939,5]
[341032009,1730287864092,-500.0,0.00034939,5]
[341032010,1730287864101,-500.0,0.00034939,5]
[341032011,1730287864111,-1352.49,0.00034939,5]
[341032012,1730287864120,-500.0,0.00034939,5]
[341032013,1730287864130,-500.0,0.00034939,5]
[341032014,1730287864139,-500.0,0.00034939,5]
[341032015,1730287864149,-811.98,0.00034939,5]
[341032016,1730287864158,-547.82256888,0.00034939,5]
[341032017,1730287864167,-500.0,0.00034939,5]
[341032018,1730287864177,-1030.18,0.00034939,5]
[341032019,1730287864187,-903.51,0.00034939,5]
[341032020,1730287864197,-500.0,0.00034939,5]
[341032021,1730287864208,-500.0,0.00034939,5]
[341032022,1730287864218,-219.34198764,0.00034939,5]
[341032023,1730287864227,-573.58,0.00034939,5]
[341032024,1730287864236,-500.0,0.00034939,5]
[341032025,1730287864246,-679.11,0.00034939,5]
[341032026,1730287864258,-615.87,0.0003494,5]
[341032027,1730287864268,-500.0,0.0003494,5]
[341032028,1730287864277,-500.0,0.0003494,5]
[341032029,1730287864287,-500.0,0.0003494,5]
[341032030,1730287864296,-500.0,0.0003494,5]
[341032031,1730287864305,-1411.46,0.0003494,5]
[341032032,1730287864314,-1100.18,0.0003494,5]
[341032033,1730287864323,-500.0,0.0003494,5]
[341032034,1730287864333,-500.0,0.0003494,5]
[341032035,1730287864342,-500.0,0.0003494,5]
[341032036,1730287864352,-500.0,0.0003494,5]
[341032037,1730287864361,-741.79,0.0003494,5]
[341032038,1730287864371,-612.84,0.0003494,5]
[341032039,1730287864380,-500.0,0.0003494,5]
[341032040,1730287864390,-500.0,0.0003494,5]
[341032041,1730287864399,-500.0,0.0003494,5]
[341032042,1730287864408,-500.0,0.0003494,5]
[341032043,1730287864418,-714.49,0.0003494,5]
[341032044,1730287864427,-500.0,0.0003494,5]
[341032045,1730287864436,-500.0,0.0003494,5]
[341032046,1730287864446,-200.0,0.0003494,5]
[341032047,1730287864457,-512.78825852,0.0003494,5]
[341032048,1730287864467,-500.0,0.0003494,5]
[341032049,1730287864476,-500.0,0.0003494,5]
[341032050,1730287864486,-500.0,0.0003494,5]
[341032051,1730287864495,-500.0,0.0003494,5]
[341032052,1730287864504,-500.0,0.0003494,5]
[341032053,1730287864514,-500.0,0.0003494,5]
[341032054,1730287864523,-560.99,0.0003494,5]
[341032055,1730287864533,-500.0,0.0003494,5]
[341032056,1730287864543,-500.0,0.0003494,5]
[341032057,1730287864553,-500.0,0.0003494,5]
[341032058,1730287864562,-500.0,0.0003494,5]
[341032059,1730287864572,-500.0,0.0003494,5]
[341032060,1730287864581,-500.0,0.0003494,5]
[341032061,1730287864591,-500.0,0.0003494,5]
[341032062,1730287864601,-629.8,0.0003494,5]
[341032063,1730287864610,-500.0,0.0003494,5]
[341032064,1730287864620,-500.0,0.0003494,5]
[341032065,1730287864631,-550.23,0.0003494,5]
[341032066,1730287864645,-500.0,0.0003494,5]
[341032067,1730287864657,-500.0,0.0003494,5]
[341032068,1730287864667,-500.0,0.0003494,5]
[341032069,1730287864677,-500.0,0.0003494,5]
[341032070,1730287864687,-500.0,0.0003494,5]
[341032071,1730287864697,-445.97753654,0.0003494,5]
[341032072,1730287864708,-605.86,0.0003494,5]
[341032073,1730287864720,-500.0,0.0003494,5]
[341032074,1730287864730,-500.0,0.0003494,5]
[341032075,1730287864740,-500.0,0.0003494,5]
[341032076,1730287864750,-634.94713461,0.0003494,5]
[341032077,1730287864759,-500.0,0.0003494,5]
[341032078,1730287864769,-1050.21,0.0003494,5]
[341032079,1730287864779,-506.95272974,0.0003494,5]
[341032080,1730287864788,-500.0,0.0003494,5]
[341032081,1730287864798,-500.0,0.0003494,5]
[341032082,1730287864808,-500.0,0.0003494,5]
[341032083,1730287864818,-500.0,0.0003494,5]
[341032084,1730287864828,-950.52,0.0003494,5]
[341032085,1730287864837,-500.0,0.0003494,5]
[341032086,1730287864847,-500.0,0.0003494,5]
[341032087,1730287864857,-500.0,0.0003494,5]
[341032088,1730287864867,-1116.19,0.0003494,5]
[341032089,1730287864877,-500.0,0.0003494,5]
[341032090,1730287864887,-500.0,0.0003494,5]
[341032091,1730287864897,-500.0,0.0003494,5]
[341032092,1730287864907,-500.0,0.0003494,5]
[341032093,1730287864917,-500.0,0.0003494,5]
[341032094,1730287864927,-1174.61,0.0003494,5]
[341032095,1730287864937,-500.0,0.0003494,5]
[341032096,1730287864947,-500.0,0.0003494,5]
[341032097,1730287864957,-500.0,0.0003494,5]
[341032098,1730287864967,-500.0,0.0003494,5]
[341032099,1730287864978,-500.0,0.0003494,5]
[341032100,1730287864989,-238.22118414,0.0003494,5]
[341032101,1730287864999,-500.0,0.0003494,5]
[341032102,1730287865009,-500.0,0.0003494,5]
[341032103,1730287865019,-500.0,0.0003494,5]
[341032104,1730287865028,-500.0,0.0003494,5]
[341032105,1730287865038,-500.0,0.0003494,5]
[341032106,1730287865048,-500.0,0.0003494,5]
[341032107,1730287865057,-500.0,0.0003494,5]
[341032108,1730287865067,-500.0,0.0003494,5]
[341032109,1730287865077,-500.0,0.0003494,5]
[341032110,1730287865087,-862.57,0.0003494,5]
[341032111,1730287865096,-777.97,0.0003494,5]
[341032112,1730287865105,-1748.92,0.0003494,5]
[341032113,1730287865116,-500.0,0.0003494,5]
[341032114,1730287865125,-1344.36,0.0003494,5]
[341032115,1730287865135,-277.8321747,0.0003494,5]
[341032116,1730287865144,-1589.7,0.0003494,5]
[341032117,1730287865154,-500.0,0.0003494,5]
[341032118,1730287865164,-500.0,0.0003494,5]
[341032119,1730287865174,-500.0,0.0003494,5]
[341032120,1730287865183,-658.36,0.0003494,5]
[341032121,1730287865193,-329.94862209,0.0003494,5]
[341032122,1730287865202,-210.90864491,0.0003494,5]
[341032123,1730287865212,-500.0,0.0003494,5]
[341032124,1730287865221,-500.0,0.0003494,5]
[341032125,1730287865231,-500.0,0.0003494,5]
[341032126,1730287865240,-1302.57,0.0003494,5]
[341032127,1730287865250,-884.45,0.0003494,5]
[341032128,1730287865263,-500.0,0.0003494,5]
[341032129,1730287865273,-500.0,0.0003494,5]
[341032130,1730287865282,-500.0,0.0003494,5]
[341032131,1730287865291,-500.0,0.0003494,5]
[341032132,1730287865302,-500.0,0.0003494,5]
[341032133,1730287865311,-402.21972262,0.0003494,5]
[341032134,1730287865320,-500.0,0.0003494,5]
[341032135,1730287865330,-500.0,0.0003494,5]
[341032136,1730287865340,-500.0,0.0003494,5]
[341032137,1730287865349,-500.0,0.0003494,5]
[341032138,1730287865358,-500.0,0.0003494,5]
[341032139,1730287865367,-500.0,0.0003494,5]
[341032140,1730287865376,-500.0,0.0003494,5]
[341032141,1730287865385,-2212.61,0.0003494,5]
[341032142,1730287865395,-500.0,0.0003494,5]
[341032143,1730287865404,-500.0,0.0003494,5]
[341032144,1730287865413,-500.0,0.0003494,5]
[341032145,1730287865422,-500.0,0.0003494,5]
[341032146,1730287865529,-500.0,0.0003494,5]
[341032147,1730287865539,-588.43,0.0003494,5]
[341032148,1730287865548,-500.0,0.0003494,5]
[341032149,1730287865558,-500.0,0.0003494,5]
[341032150,1730287865567,-1000.0,0.0003494,5]
[341032151,1730287865577,-500.0,0.0003494,5]
[341032152,1730287865586,-500.0,0.0003494,5]
[341032153,1730287865595,-500.0,0.0003494,5]
[341032154,1730287865604,-574.51,0.0003494,5]
[341032155,1730287865614,-500.0,0.0003494,5]
[341032156,1730287865623,-500.0,0.0003494,5]
[341032157,1730287865634,-500.0,0.0003494,5]
[341032158,1730287865643,-500.0,0.0003494,5]
[341032159,1730287865653,-500.0,0.0003494,5]
[341032160,1730287865662,-532.10895132,0.0003494,5]
[341032161,1730287865672,-500.0,0.0003494,5]
[341032162,1730287865681,-500.0,0.0003494,5]
[341032163,1730287865691,-1000.0,0.0003494,10]
[341032164,1730287865703,-985.37,0.0003494,5]
[341032165,1730287865719,-500.0,0.0003494,5]
[341032166,1730287865728,-500.0,0.0003494,5]
[341032167,1730287865738,-1061.29,0.0003494,5]
[341032168,1730287865747,-500.0,0.0003494,5]
[341032169,1730287865756,-500.0,0.0003494,5]
[341032170,1730287865765,-500.0,0.0003494,5]
[341032171,1730287865774,-500.0,0.0003494,5]
[341032172,1730287865783,-500.0,0.0003494,5]
[341032173,1730287865793,-500.0,0.0003494,5]
[341032174,1730287865803,-500.0,0.0003494,5]
[341032175,1730287865812,-500.0,0.0003494,5]
[341032176,1730287865822,-500.0,0.0003494,5]
[341032177,1730287865832,-500.0,0.0003494,5]
[341032178,1730287865842,-500.0,0.0003494,5]
[341032179,1730287865853,-500.0,0.0003494,5]
[341032180,1730287865862,-155.39633005,0.0003494,5]
[341032181,1730287865872,-2000.0,0.0003494,5]
[341032182,1730287865882,-500.0,0.0003494,5]
[341032183,1730287865891,-595.81162398,0.0003494,5]
[341032184,1730287865900,-500.0,0.0003494,5]
[341032185,1730287865910,-500.0,0.0003494,5]
[341032186,1730287865919,-797.09,0.0003494,5]
[341032187,1730287865928,-500.0,0.0003494,5]
[341032188,1730287865938,-500.0,0.0003494,5]
[341032189,1730287865947,-500.0,0.0003494,5]
[341032190,1730287865959,-500.0,0.0003494,5]
[341032191,1730287865968,-500.0,0.0003494,5]
[341032192,1730287865977,-500.0,0.0003494,5]
[341032193,1730287865986,-500.0,0.0003494,5]
[341032194,1730287865996,-500.0,0.0003494,5]
[341032195,1730287866005,-500.0,0.0003494,5]
[341032196,1730287866014,-500.0,0.0003494,5]
[341032197,1730287866023,-1532.21,0.0003494,5]
[341032198,1730287866032,-500.0,0.0003494,5]
[341032199,1730287866042,-500.0,0.0003494,5]
[341032200,1730287866051,-500.0,0.0003494,5]
[341032201,1730287866061,-3567.53,0.0003494,5]
[341032202,1730287866071,-500.0,0.0003494,5]
[341032203,1730287866080,-500.0,0.0003494,5]
[341032204,1730287866090,-500.0,0.0003494,5]
[341032205,1730287866099,-500.0,0.0003494,5]
[341032206,1730287866109,-500.0,0.0003494,5]
[341032207,1730287866119,-500.0,0.0003494,5]
[341032208,1730287866128,-500.0,0.0003494,5]
[341032209,1730287866137,-516.21,0.0003494,5]
[341032210,1730287866147,-500.0,0.0003494,5]
[341032211,1730287866156,-500.0,0.0003494,5]
[341032212,1730287866166,-500.0,0.0003494,5]
[341032213,1730287866175,-583.17,0.0003494,5]
[341032214,1730287866185,-500.0,0.0003494,5]
[341032215,1730287866195,-500.0,0.0003494,5]
[341032216,1730287866206,-500.0,0.0003494,5]
[341032217,1730287866215,-500.0,0.0003494,5]
[341032218,1730287866224,-391.94966298,0.0003494,5]
[341032219,1730287866235,-500.0,0.0003494,5]
[341032220,1730287866246,-614.51139737,0.0003494,7]
[341032221,1730287866259,-1006.59,0.0003494,5]
[341032222,1730287866269,-500.0,0.0003494,5]
[341032223,1730287866278,-500.0,0.0003494,5]
[341032224,1730287866290,-500.0,0.0003494,5]
[341032225,1730287866300,-500.0,0.0003494,5]
[341032226,1730287866309,-624.35305938,0.0003494,5]
[341032227,1730287866319,-1027.25,0.0003494,5]
[341032228,1730287866329,-1122.81,0.0003494,5]
[341032229,1730287866339,-500.0,0.0003494,5]
[341032230,1730287866349,-500.0,0.0003494,5]
[341032231,1730287866359,-500.0,0.0003494,5]
[341032232,1730287866368,-500.0,0.0003494,5]
[341032233,1730287866378,-500.0,0.0003494,5]
[341032234,1730287866389,-752.68,0.0003494,5]
[341032235,1730287866398,-500.0,0.0003494,5]
[341032236,1730287866408,-691.52,0.0003494,5]
[341032237,1730287866419,-500.0,0.0003494,5]
[341032238,1730287866430,-1698.81,0.0003494,5]
[341032239,1730287866439,-500.0,0.0003494,5]
[341032240,1730287866448,-500.0,0.0003494,5]
[341032241,1730287866459,-769.39,0.0003494,5]
[341032242,1730287866468,-2556.13,0.0003494,5]
[341032243,1730287866479,-500.0,0.0003494,5]